[Event "Live Chess"]
[Site "Chess.com"]
[Date "2024.06.02"]
[Round "-"]
[White "NeilDruggan73"]
[Black "gobbles19"]
[Result "0-1"]
[WhiteElo "1704"]
[BlackElo "2207"]
[TimeControl "300"]
[EndTime "7:20:03 PDT"]
[Termination "gobbles19 won by checkmate"]

1. d4 {[%clk 0:04:57.2]} 1... Nf6 {[%clk 0:04:58.7]} 2. Bg5 {[%clk 0:04:54.6]}
2... c5 {[%clk 0:04:57]} 3. Bxf6 {[%clk 0:04:47.1]} 3... gxf6 {[%clk 0:04:52.7]}
4. d5 {[%clk 0:04:46.7]} 4... d6 {[%clk 0:04:51.7]} 5. Nf3 {[%clk 0:04:42]} 5...
Qb6 {[%clk 0:04:50.5]} 6. c4 {[%clk 0:04:36.1]} 6... Qxb2 {[%clk 0:04:47.9]} 7.
Nbd2 {[%clk 0:04:34.6]} 7... Qb6 {[%clk 0:04:46.6]} 8. e4 {[%clk 0:04:32.4]}
8... f5 {[%clk 0:04:41.8]} 9. Rb1 {[%clk 0:04:29.3]} 9... Qc7 {[%clk 0:04:40.6]}
10. Bd3 {[%clk 0:04:25.1]} 10... fxe4 {[%clk 0:04:29.5]} 11. Bxe4 {[%clk
0:04:19.7]} 11... Nd7 {[%clk 0:04:28.2]} 12. O-O {[%clk 0:04:11.2]} 12... Nf6
{[%clk 0:04:27.1]} 13. Bd3 {[%clk 0:04:08.6]} 13... Bg4 {[%clk 0:04:22.4]} 14.
Re1 {[%clk 0:04:05.2]} 14... h5 {[%clk 0:04:13.4]} 15. Ne4 {[%clk 0:04:03.7]}
15... Nxe4 {[%clk 0:04:07.3]} 16. Rxe4 {[%clk 0:04:02]} 16... O-O-O {[%clk
0:04:03.7]} 17. h3 {[%clk 0:03:59.1]} 17... Bd7 {[%clk 0:03:58.2]} 18. Ng5
{[%clk 0:03:52.2]} 18... f5 {[%clk 0:03:54.9]} 19. Re2 {[%clk 0:03:48.9]} 19...
Rg8 {[%clk 0:03:45.4]} 20. h4 {[%clk 0:03:40.3]} 20... Bg7 {[%clk 0:03:28.4]}
21. Rxe7 {[%clk 0:03:37]} 21... Bf6 {[%clk 0:03:27.6]} 22. Ne6 {[%clk
0:03:33.2]} 22... Qa5 {[%clk 0:03:18.6]} 23. Rxd7 {[%clk 0:03:08.8]} 23... Rxd7
{[%clk 0:03:14.7]} 24. Bxf5 {[%clk 0:03:08.3]} 24... Kb8 {[%clk 0:02:54.3]} 25.
Nxc5 {[%clk 0:02:43.5]} 25... Rdg7 {[%clk 0:02:51.7]} 26. Rxb7+ {[%clk
0:02:15.3]} 26... Rxb7 {[%clk 0:02:48]} 27. Nxb7 {[%clk 0:02:12.8]} 27... Kxb7
{[%clk 0:02:45]} 28. Qb3+ {[%clk 0:02:03.1]} 28... Qb6 {[%clk 0:02:43.2]} 29.
Qa4 {[%clk 0:01:58.1]} 29... Rg7 {[%clk 0:02:37.4]} 30. g3 {[%clk 0:01:53]}
30... Rxg3+ {[%clk 0:02:35.5]} 31. Kh2 {[%clk 0:01:50.1]} 31... Qxf2+ {[%clk
0:02:33.7]} 32. Kh1 {[%clk 0:01:15.6]} 32... Rg1# {[%clk 0:02:25.3]} 0-1

[Event "Live Chess"]
[Site "Chess.com"]
[Date "2024.06.02"]
[Round "-"]
[White "JohanKjeldahl"]
[Black "Queensandpawns"]
[Result "0-1"]
[WhiteElo "1794"]
[BlackElo "2282"]
[TimeControl "300"]
[EndTime "7:20:03 PDT"]
[Termination "Queensandpawns won by resignation"]

1. c4 {[%clk 0:04:57.8]} 1... e5 {[%clk 0:04:59.9]} 2. Nc3 {[%clk 0:04:56.9]}
2... f5 {[%clk 0:04:59]} 3. e3 {[%clk 0:04:55.3]} 3... d6 {[%clk 0:04:58.2]} 4.
g3 {[%clk 0:04:53.7]} 4... Nf6 {[%clk 0:04:58.1]} 5. Bg2 {[%clk 0:04:52.8]} 5...
Be7 {[%clk 0:04:58]} 6. Nge2 {[%clk 0:04:51.8]} 6... O-O {[%clk 0:04:57.9]} 7.
O-O {[%clk 0:04:50.7]} 7... c6 {[%clk 0:04:57.8]} 8. d4 {[%clk 0:04:49.2]} 8...
Qe8 {[%clk 0:04:57.7]} 9. b3 {[%clk 0:04:47.6]} 9... Qh5 {[%clk 0:04:56.5]} 10.
Bb2 {[%clk 0:04:45.5]} 10... f4 {[%clk 0:04:56.1]} 11. exf4 {[%clk 0:04:43.9]}
11... Bh3 {[%clk 0:04:55.5]} 12. dxe5 {[%clk 0:04:40.7]} 12... Ng4 {[%clk
0:04:54.5]} 13. f3 {[%clk 0:04:31.4]} 13... Ne3 {[%clk 0:04:46]} 14. Qd3 {[%clk
0:04:30]} 14... Bxg2 {[%clk 0:04:21.9]} 15. Qxe3 {[%clk 0:04:27.6]} 15... Bxf1
{[%clk 0:04:21.8]} 16. Rxf1 {[%clk 0:04:25.7]} 16... dxe5 {[%clk 0:04:21.4]} 17.
fxe5 {[%clk 0:04:17.8]} 17... Nd7 {[%clk 0:04:19.2]} 18. Ne4 {[%clk 0:04:07.9]}
18... Nxe5 {[%clk 0:04:15.2]} 19. Nf4 {[%clk 0:04:06.7]} 19... Qf5 {[%clk
0:04:10]} 20. Re1 {[%clk 0:03:50.4]} 20... Rae8 {[%clk 0:04:05.2]} 21. Qd4
{[%clk 0:03:45.4]} 21... Nxf3+ {[%clk 0:04:02.9]} 0-1

[Event "Live Chess"]
[Site "Chess.com"]
[Date "2024.06.02"]
[Round "-"]
[White "grillage"]
[Black "wadsy27"]
[Result "0-1"]
[WhiteElo "1870"]
[BlackElo "2598"]
[TimeControl "300"]
[EndTime "7:20:11 PDT"]
[Termination "wadsy27 won by resignation"]

1. d4 {[%clk 0:04:56.8]} 1... d5 {[%clk 0:04:58.1]} 2. Nf3 {[%clk 0:04:55.2]}
2... Nf6 {[%clk 0:04:56.8]} 3. c4 {[%clk 0:04:53.3]} 3... c6 {[%clk 0:04:56.1]}
4. Qc2 {[%clk 0:04:51.8]} 4... dxc4 {[%clk 0:04:54.5]} 5. Qxc4 {[%clk 0:04:51]}
5... Bg4 {[%clk 0:04:53.8]} 6. Nc3 {[%clk 0:04:48.7]} 6... Nbd7 {[%clk
0:04:45.2]} 7. Bf4 {[%clk 0:04:44.9]} 7... Bxf3 {[%clk 0:04:41.2]} 8. exf3
{[%clk 0:04:41.8]} 8... e6 {[%clk 0:04:40.8]} 9. Bd3 {[%clk 0:04:32.4]} 9... Be7
{[%clk 0:04:37.8]} 10. O-O {[%clk 0:04:31.3]} 10... O-O {[%clk 0:04:36]} 11. Qb3
{[%clk 0:04:29.1]} 11... Qb6 {[%clk 0:04:34.1]} 12. Qxb6 {[%clk 0:04:23.4]}
12... Nxb6 {[%clk 0:04:32.2]} 13. Rfe1 {[%clk 0:04:19.2]} 13... Rfd8 {[%clk
0:04:28.5]} 14. Ne4 {[%clk 0:04:13.6]} 14... Nbd5 {[%clk 0:04:21.9]} 15. Be3
{[%clk 0:04:01.6]} 15... Nxe3 {[%clk 0:04:17.7]} 16. fxe3 {[%clk 0:04:00.3]}
16... c5 {[%clk 0:04:17.2]} 17. Nxf6+ {[%clk 0:03:52]} 17... Bxf6 {[%clk
0:04:14.8]} 18. Rac1 {[%clk 0:03:42.5]} 18... cxd4 {[%clk 0:04:12.7]} 19. exd4
{[%clk 0:03:12.9]} 19... Bxd4+ {[%clk 0:04:09.9]} 20. Kf1 {[%clk 0:03:09.9]}
20... Bxb2 {[%clk 0:04:09.4]} 21. Rc7 {[%clk 0:03:07.9]} 21... Rxd3 {[%clk
0:04:07.1]} 0-1

[Event "Live Chess"]
[Site "Chess.com"]
[Date "2024.06.02"]
[Round "-"]
[White "dl_chess"]
[Black "ZombieChainsaw"]
[Result "0-1"]
[WhiteElo "1191"]
[BlackElo "1790"]
[TimeControl "300"]
[EndTime "7:20:12 PDT"]
[Termination "ZombieChainsaw won on time"]

1. e4 {[%clk 0:04:56.8]} 1... c5 {[%clk 0:04:57]} 2. Nf3 {[%clk 0:04:54.5]} 2...
Nc6 {[%clk 0:04:55.8]} 3. d4 {[%clk 0:04:53.6]} 3... cxd4 {[%clk 0:04:55.1]} 4.
Nxd4 {[%clk 0:04:52.6]} 4... Nf6 {[%clk 0:04:54.2]} 5. Nc3 {[%clk 0:04:51.3]}
5... e5 {[%clk 0:04:53.3]} 6. Nb3 {[%clk 0:04:48.7]} 6... Bb4 {[%clk 0:04:52]}
7. Bd3 {[%clk 0:04:44.1]} 7... d5 {[%clk 0:04:50.1]} 8. Bd2 {[%clk 0:04:30.2]}
8... Bxc3 {[%clk 0:04:40.6]} 9. Bxc3 {[%clk 0:04:25.2]} 9... dxe4 {[%clk
0:04:39.2]} 10. Bb5 {[%clk 0:04:16.1]} 10... Qc7 {[%clk 0:04:25.9]} 11. Bxc6+
{[%clk 0:04:08.1]} 11... bxc6 {[%clk 0:04:25.8]} 12. O-O {[%clk 0:03:59]} 12...
O-O {[%clk 0:04:23.8]} 13. Re1 {[%clk 0:03:52.7]} 13... Bf5 {[%clk 0:04:19.9]}
14. Ba5 {[%clk 0:03:48]} 14... Qe7 {[%clk 0:03:58.6]} 15. Qe2 {[%clk 0:03:41.1]}
15... Nd5 {[%clk 0:03:40.1]} 16. a3 {[%clk 0:03:33.1]} 16... Qg5 {[%clk
0:03:18.5]} 17. Bd2 {[%clk 0:03:20.5]} 17... Nf4 {[%clk 0:03:09.2]} 18. Bxf4
{[%clk 0:03:15.9]} 18... exf4 {[%clk 0:03:08]} 19. g3 {[%clk 0:02:04.9]} 19...
f3 {[%clk 0:02:53.1]} 20. Qe3 {[%clk 0:02:02.3]} 20... Qg4 {[%clk 0:02:38.9]}
21. Kh1 {[%clk 0:01:02.8]} 21... Qh3 {[%clk 0:02:34.5]} 22. Rg1 {[%clk
0:01:01.6]} 22... Rad8 {[%clk 0:02:33.2]} 23. Nd4 {[%clk 0:00:47.5]} 23... Rd6
{[%clk 0:02:17.2]} 24. Nxf5 {[%clk 0:00:46]} 24... Qxf5 {[%clk 0:02:14.9]} 25.
Rae1 {[%clk 0:00:42.1]} 25... Re8 {[%clk 0:02:07.4]} 26. c3 {[%clk 0:00:29.8]}
26... Rh6 {[%clk 0:02:04]} 27. g4 {[%clk 0:00:14.1]} 27... Qe5 {[%clk
0:01:48.4]} 28. Rg3 {[%clk 0:00:11.5]} 28... Rh4 {[%clk 0:01:41.2]} 0-1

[Event "Live Chess"]
[Site "Chess.com"]
[Date "2024.06.02"]
[Round "-"]
[White "r0ad_t0-gm"]
[Black "Kyrylo7770"]
[Result "1-0"]
[WhiteElo "2274"]
[BlackElo "1641"]
[TimeControl "300"]
[EndTime "7:20:19 PDT"]
[Termination "r0ad_t0-gm won by resignation"]

1. Nf3 {[%clk 0:04:58.8]} 1... d5 {[%clk 0:04:59.1]} 2. g3 {[%clk 0:04:57.1]}
2... Bg4 {[%clk 0:04:58.4]} 3. Bg2 {[%clk 0:04:56.3]} 3... c6 {[%clk 0:04:57.7]}
4. O-O {[%clk 0:04:55.6]} 4... Bxf3 {[%clk 0:04:55.9]} 5. Bxf3 {[%clk 0:04:54]}
5... e5 {[%clk 0:04:55.6]} 6. d3 {[%clk 0:04:52.3]} 6... Nf6 {[%clk 0:04:54.9]}
7. e4 {[%clk 0:04:52.2]} 7... d4 {[%clk 0:04:53.8]} 8. Bg2 {[%clk 0:04:50.9]}
8... Be7 {[%clk 0:04:52.4]} 9. Nd2 {[%clk 0:04:50.5]} 9... O-O {[%clk
0:04:51.9]} 10. h3 {[%clk 0:04:49.1]} 10... Nbd7 {[%clk 0:04:50.2]} 11. f4
{[%clk 0:04:48.2]} 11... exf4 {[%clk 0:04:49.1]} 12. gxf4 {[%clk 0:04:48.1]}
12... c5 {[%clk 0:04:47.7]} 13. Nf3 {[%clk 0:04:47.5]} 13... Qb6 {[%clk
0:04:44.8]} 14. b3 {[%clk 0:04:41.6]} 14... Nh5 {[%clk 0:04:43.6]} 15. Qe1
{[%clk 0:04:40.5]} 15... Qd8 {[%clk 0:04:40.2]} 16. Kh2 {[%clk 0:04:33.4]} 16...
Bd6 {[%clk 0:04:38.5]} 17. e5 {[%clk 0:04:30.1]} 17... Bc7 {[%clk 0:04:36.5]}
18. Ng5 {[%clk 0:04:28.8]} 18... f6 {[%clk 0:04:33.8]} 19. Ne6 {[%clk
0:04:27.2]} 19... Qe7 {[%clk 0:04:31.8]} 20. Nxc7 {[%clk 0:04:25.8]} 20... Rac8
{[%clk 0:04:28.3]} 21. Nd5 {[%clk 0:04:17.3]} 21... Qe6 {[%clk 0:04:27.2]} 22.
f5 {[%clk 0:04:13.6]} 22... Qf7 {[%clk 0:04:23.3]} 23. e6 {[%clk 0:04:12]} 23...
Qe8 {[%clk 0:04:20.6]} 24. exd7 {[%clk 0:04:10.7]} 24... Qxd7 {[%clk 0:04:20.2]}
25. Qe6+ {[%clk 0:04:02.5]} 25... Qxe6 {[%clk 0:04:19]} 26. fxe6 {[%clk
0:04:02.4]} 26... Rfe8 {[%clk 0:04:12.9]} 27. Nf4 {[%clk 0:03:59.5]} 27... Nxf4
{[%clk 0:04:11.3]} 28. Bxf4 {[%clk 0:03:59.4]} 28... Rxe6 {[%clk 0:04:10.8]} 29.
Bd5 {[%clk 0:03:58.6]} 29... Re8 {[%clk 0:04:08.2]} 30. Rae1 {[%clk 0:03:57.6]}
30... Kf7 {[%clk 0:04:07.3]} 31. Rxe6 {[%clk 0:03:57.2]} 31... Rxe6 {[%clk
0:04:06.7]} 32. Re1 {[%clk 0:03:57.1]} 1-0

[Event "Live Chess"]
[Site "Chess.com"]
[Date "2024.06.02"]
[Round "-"]
[White "DJ_Lambton"]
[Black "booktrunk"]
[Result "1-0"]
[WhiteElo "1821"]
[BlackElo "1493"]
[TimeControl "300"]
[EndTime "7:21:04 PDT"]
[Termination "DJ_Lambton won by checkmate"]

1. c4 {[%clk 0:04:59.3]} 1... b6 {[%clk 0:04:57.3]} 2. g3 {[%clk 0:04:58.5]}
2... Bb7 {[%clk 0:04:53.2]} 3. Nf3 {[%clk 0:04:58]} 3... e6 {[%clk 0:04:50]} 4.
Bg2 {[%clk 0:04:57.1]} 4... h6 {[%clk 0:04:48.6]} 5. O-O {[%clk 0:04:56.4]} 5...
Nf6 {[%clk 0:04:47.3]} 6. d4 {[%clk 0:04:55.9]} 6... Be7 {[%clk 0:04:41.8]} 7.
Nc3 {[%clk 0:04:54.8]} 7... Bb4 {[%clk 0:04:39.3]} 8. Re1 {[%clk 0:04:53.3]}
8... Bxc3 {[%clk 0:04:37.7]} 9. bxc3 {[%clk 0:04:52.6]} 9... Na6 {[%clk
0:04:34.3]} 10. Ba3 {[%clk 0:04:46.8]} 10... Rb8 {[%clk 0:04:32.4]} 11. Rb1
{[%clk 0:04:43.1]} 11... Ne4 {[%clk 0:04:28.5]} 12. Qc2 {[%clk 0:04:38.9]} 12...
d5 {[%clk 0:04:23.8]} 13. cxd5 {[%clk 0:04:37.1]} 13... Bxd5 {[%clk 0:04:21.2]}
14. Ne5 {[%clk 0:04:32.4]} 14... Nf6 {[%clk 0:04:18.9]} 15. Bxd5 {[%clk
0:04:29.3]} 15... Qxd5 {[%clk 0:04:13]} 16. e4 {[%clk 0:04:22.3]} 16... Qb7
{[%clk 0:04:01.3]} 17. Qa4+ {[%clk 0:04:12.6]} 17... b5 {[%clk 0:03:58.1]} 18.
Qc2 {[%clk 0:03:55.6]} 18... Nd7 {[%clk 0:03:48.9]} 19. Ng4 {[%clk 0:03:22.5]}
19... c5 {[%clk 0:03:42.1]} 20. d5 {[%clk 0:03:12]} 20... O-O {[%clk 0:03:37]}
21. c4 {[%clk 0:03:04]} 21... b4 {[%clk 0:03:34.3]} 22. Bb2 {[%clk 0:03:03.1]}
22... exd5 {[%clk 0:03:31.2]} 23. exd5 {[%clk 0:03:01.7]} 23... Rbe8 {[%clk
0:03:24.8]} 24. Qf5 {[%clk 0:02:53.9]} 24... Rxe1+ {[%clk 0:03:20.4]} 25. Rxe1
{[%clk 0:02:53.8]} 25... Qc8 {[%clk 0:03:14.5]} 26. Nxh6+ {[%clk 0:02:38]} 26...
Kh8 {[%clk 0:03:12.6]} 27. Qh5 {[%clk 0:02:22.9]} 27... Nf6 {[%clk 0:02:56.4]}
28. Bxf6 {[%clk 0:02:12.3]} 28... gxf6 {[%clk 0:02:53.5]} 29. Nxf7+ {[%clk
0:02:09.4]} 29... Kg7 {[%clk 0:02:52.3]} 30. Qh6+ {[%clk 0:02:02.2]} 30... Kxf7
{[%clk 0:02:42.7]} 31. Qh7# {[%clk 0:02:01.3]} 1-0

[Event "Live Chess"]
[Site "Chess.com"]
[Date "2024.06.02"]
[Round "-"]
[White "FlyingChessKestrel13"]
[Black "Colm_Buckley"]
[Result "1-0"]
[WhiteElo "2067"]
[BlackElo "1870"]
[TimeControl "300"]
[EndTime "7:21:06 PDT"]
[Termination "FlyingChessKestrel13 won by resignation"]

1. Nf3 {[%clk 0:04:56.8]} 1... Nf6 {[%clk 0:04:58.2]} 2. b3 {[%clk 0:04:56.7]}
2... b6 {[%clk 0:04:55.5]} 3. Bb2 {[%clk 0:04:56.3]} 3... Bb7 {[%clk 0:04:55.1]}
4. e3 {[%clk 0:04:55.9]} 4... c5 {[%clk 0:04:54.2]} 5. Be2 {[%clk 0:04:55.6]}
5... e6 {[%clk 0:04:52.1]} 6. O-O {[%clk 0:04:55.1]} 6... Be7 {[%clk 0:04:49.9]}
7. d4 {[%clk 0:04:54.6]} 7... cxd4 {[%clk 0:04:47.7]} 8. exd4 {[%clk 0:04:53.4]}
8... O-O {[%clk 0:04:43.7]} 9. c4 {[%clk 0:04:53]} 9... d5 {[%clk 0:04:37.8]}
10. Nc3 {[%clk 0:04:50.5]} 10... Nc6 {[%clk 0:04:32.2]} 11. Bd3 {[%clk
0:04:46.1]} 11... dxc4 {[%clk 0:04:27.5]} 12. bxc4 {[%clk 0:04:45.4]} 12... Kh8
{[%clk 0:04:14]} 13. Ne4 {[%clk 0:04:39.2]} 13... Nxe4 {[%clk 0:04:05.6]} 14.
Bxe4 {[%clk 0:04:37.3]} 14... f5 {[%clk 0:03:58.7]} 15. Bc2 {[%clk 0:04:35.9]}
15... Bf6 {[%clk 0:03:57.8]} 16. d5 {[%clk 0:04:30.6]} 16... Bxb2 {[%clk
0:03:54]} 17. dxc6 {[%clk 0:04:29.3]} 17... Bxc6 {[%clk 0:03:42.1]} 18. Rb1
{[%clk 0:04:24]} 18... Bf6 {[%clk 0:03:31.3]} 19. Qe2 {[%clk 0:04:21.5]} 19...
Qc7 {[%clk 0:03:23.1]} 20. Qxe6 {[%clk 0:04:09.7]} 20... Bxf3 {[%clk 0:03:19.7]}
21. gxf3 {[%clk 0:04:08.5]} 21... g6 {[%clk 0:03:00.7]} 22. Rfd1 {[%clk
0:03:57.1]} 22... Rae8 {[%clk 0:02:49]} 23. Rd7 {[%clk 0:03:20.3]} 23... Qf4
{[%clk 0:02:36.7]} 24. Qd5 {[%clk 0:03:12.5]} 24... Be5 {[%clk 0:02:27.1]} 25.
Kf1 {[%clk 0:02:58.1]} 25... Qxh2 {[%clk 0:02:20.4]} 26. f4 {[%clk 0:02:57]}
26... Qxf4 {[%clk 0:01:53.5]} 27. Qh1 {[%clk 0:02:40.6]} 27... h5 {[%clk
0:01:38.3]} 28. Qg2 {[%clk 0:02:34.1]} 28... Qxc4+ {[%clk 0:01:25.9]} 29. Bd3
{[%clk 0:02:32.7]} 29... Qe6 {[%clk 0:01:25.6]} 30. Rxa7 {[%clk 0:02:26.1]}
30... Bc3 {[%clk 0:01:18.1]} 31. Qg5 {[%clk 0:02:20]} 31... Qc6 {[%clk 0:01:03]}
32. Qh6+ {[%clk 0:02:15.7]} 1-0

[Event "Live Chess"]
[Site "Chess.com"]
[Date "2024.06.02"]
[Round "-"]
[White "V1nas"]
[Black "CarmelJane"]
[Result "0-1"]
[WhiteElo "1313"]
[BlackElo "2010"]
[TimeControl "300"]
[EndTime "7:21:16 PDT"]
[Termination "CarmelJane won on time"]

1. d4 {[%clk 0:04:57]} 1... g6 {[%clk 0:04:57.7]} 2. Nf3 {[%clk 0:04:52.9]} 2...
Bg7 {[%clk 0:04:56.8]} 3. g3 {[%clk 0:04:52.6]} 3... c5 {[%clk 0:04:55.5]} 4.
Bg2 {[%clk 0:04:52.3]} 4... cxd4 {[%clk 0:04:54.7]} 5. Nxd4 {[%clk 0:04:51.6]}
5... Nc6 {[%clk 0:04:54.4]} 6. Nxc6 {[%clk 0:04:48]} 6... bxc6 {[%clk
0:04:54.3]} 7. O-O {[%clk 0:04:47.1]} 7... Nf6 {[%clk 0:04:53.2]} 8. e4 {[%clk
0:04:45.7]} 8... O-O {[%clk 0:04:52.4]} 9. c3 {[%clk 0:04:44.2]} 9... a5 {[%clk
0:04:49.6]} 10. a3 {[%clk 0:04:42.3]} 10... a4 {[%clk 0:04:48.5]} 11. Nd2 {[%clk
0:04:38.4]} 11... Ba6 {[%clk 0:04:45.5]} 12. Re1 {[%clk 0:04:35.3]} 12... Bb7
{[%clk 0:04:23.7]} 13. e5 {[%clk 0:04:33.9]} 13... Nd5 {[%clk 0:04:21.8]} 14. c4
{[%clk 0:04:25.5]} 14... Nb6 {[%clk 0:04:14.3]} 15. Qc2 {[%clk 0:04:24.9]} 15...
Ba6 {[%clk 0:04:07.1]} 16. b4 {[%clk 0:04:03.7]} 16... Rc8 {[%clk 0:03:56.2]}
17. Rb1 {[%clk 0:03:52.5]} 17... Qc7 {[%clk 0:03:52.8]} 18. c5 {[%clk
0:03:37.7]} 18... Nd5 {[%clk 0:03:45.2]} 19. Nf1 {[%clk 0:03:28.1]} 19... Bb5
{[%clk 0:03:32.9]} 20. Bb2 {[%clk 0:03:17.7]} 20... Qa7 {[%clk 0:03:12.5]} 21.
Nd2 {[%clk 0:03:01.6]} 21... Qa6 {[%clk 0:03:07.1]} 22. Ne4 {[%clk 0:02:49.9]}
22... Bd3 {[%clk 0:03:02.9]} 23. Qd2 {[%clk 0:02:05.2]} 23... Bxb1 {[%clk
0:02:58.5]} 24. Rxb1 {[%clk 0:02:05.1]} 24... Rcd8 {[%clk 0:02:18.4]} 25. h4
{[%clk 0:02:00.2]} 25... h5 {[%clk 0:02:04.3]} 26. Ng5 {[%clk 0:01:49.8]} 26...
Nc7 {[%clk 0:02:01.4]} 27. Bf1 {[%clk 0:01:28.6]} 27... Qb7 {[%clk 0:01:57]} 28.
Bc4 {[%clk 0:01:28.1]} 28... Ne6 {[%clk 0:01:55.7]} 29. Qe3 {[%clk 0:01:10.6]}
29... Qc7 {[%clk 0:01:50.8]} 30. Rd1 {[%clk 0:00:48.2]} 30... Qa7 {[%clk
0:01:49.1]} 31. g4 {[%clk 0:00:30.7]} 31... Nxg5 {[%clk 0:01:44.7]} 32. hxg5
{[%clk 0:00:27.4]} 32... hxg4 {[%clk 0:01:36.7]} 33. Qf4 {[%clk 0:00:14.2]}
33... d6 {[%clk 0:01:34.8]} 34. exd6 {[%clk 0:00:08.9]} 34... Bxb2 {[%clk
0:01:32]} 0-1

[Event "Live Chess"]
[Site "Chess.com"]
[Date "2024.06.02"]
[Round "-"]
[White "stevochess11"]
[Black "KeithArkell"]
[Result "0-1"]
[WhiteElo "1691"]
[BlackElo "2419"]
[TimeControl "300"]
[EndTime "7:21:20 PDT"]
[Termination "KeithArkell won by resignation"]

1. d4 {[%clk 0:04:54.8]} 1... e6 {[%clk 0:04:59]} 2. Nf3 {[%clk 0:04:53.4]} 2...
Nf6 {[%clk 0:04:58.1]} 3. e3 {[%clk 0:04:52.4]} 3... c5 {[%clk 0:04:57.3]} 4.
Bd3 {[%clk 0:04:51.2]} 4... cxd4 {[%clk 0:04:56.6]} 5. exd4 {[%clk 0:04:50.3]}
5... b6 {[%clk 0:04:56.2]} 6. b3 {[%clk 0:04:49.2]} 6... Be7 {[%clk 0:04:54.8]}
7. Bb2 {[%clk 0:04:48.2]} 7... O-O {[%clk 0:04:53.4]} 8. c4 {[%clk 0:04:47.3]}
8... Bb7 {[%clk 0:04:52.2]} 9. O-O {[%clk 0:04:45.3]} 9... d5 {[%clk 0:04:51.5]}
10. Nbd2 {[%clk 0:04:43.2]} 10... Nc6 {[%clk 0:04:50.7]} 11. a3 {[%clk
0:04:40.8]} 11... Rc8 {[%clk 0:04:49]} 12. Ne5 {[%clk 0:04:39.5]} 12... Nxe5
{[%clk 0:04:47.5]} 13. dxe5 {[%clk 0:04:38.7]} 13... Ne4 {[%clk 0:04:46.8]} 14.
Nf3 {[%clk 0:04:22.6]} 14... a5 {[%clk 0:04:44]} 15. Rc1 {[%clk 0:04:15.3]}
15... Bc5 {[%clk 0:04:43.1]} 16. Bxe4 {[%clk 0:04:10.5]} 16... dxe4 {[%clk
0:04:42]} 17. Qxd8 {[%clk 0:04:08.2]} 17... Rfxd8 {[%clk 0:04:40.9]} 18. Ng5
{[%clk 0:04:01.3]} 18... e3 {[%clk 0:04:39]} 19. Kh1 {[%clk 0:03:56.3]} 19...
exf2 {[%clk 0:04:37.7]} 20. Nh3 {[%clk 0:03:53.3]} 20... Rd2 {[%clk 0:04:36.4]}
21. Bc3 {[%clk 0:03:48.8]} 21... Re2 {[%clk 0:04:34.4]} 22. Rcd1 {[%clk
0:03:41.5]} 22... Bc6 {[%clk 0:04:31.8]} 23. Nf4 {[%clk 0:03:38.5]} 23... Rc2
{[%clk 0:04:29.4]} 24. Rd3 {[%clk 0:03:33.1]} 24... g6 {[%clk 0:04:28.2]} 25. b4
{[%clk 0:03:24.2]} 25... axb4 {[%clk 0:04:27.3]} 26. axb4 {[%clk 0:03:22.1]}
26... Be7 {[%clk 0:04:26.9]} 27. b5 {[%clk 0:03:17.3]} 27... Be4 {[%clk
0:04:24.7]} 28. Rg3 {[%clk 0:03:09.6]} 28... Ra8 {[%clk 0:04:19.2]} 29. Nh5
{[%clk 0:03:00.7]} 29... Ra3 {[%clk 0:04:12]} 30. Bd4 {[%clk 0:02:32.5]} 30...
Rxg3 {[%clk 0:04:09.4]} 31. Nxg3 {[%clk 0:02:31.7]} 31... Bd3 {[%clk 0:04:07.9]}
32. Rxf2 {[%clk 0:02:28.3]} 32... Rc1+ {[%clk 0:04:07]} 33. Nf1 {[%clk
0:02:22.9]} 33... Bxf1 {[%clk 0:04:06]} 34. Bxb6 {[%clk 0:02:19.1]} 34... Bxc4+
{[%clk 0:04:04.8]} 35. Rf1 {[%clk 0:02:16.2]} 35... Rxf1+ {[%clk 0:04:03.7]} 36.
Bg1 {[%clk 0:02:14.3]} 36... Bc5 {[%clk 0:04:03]} 37. h3 {[%clk 0:02:12.8]}
37... Bxg1 {[%clk 0:04:01.1]} 0-1

[Event "Live Chess"]
[Site "Chess.com"]
[Date "2024.06.02"]
[Round "-"]
[White "NottheBishopSacrifice"]
[Black "beltmanjb"]
[Result "1-0"]
[WhiteElo "2344"]
[BlackElo "1685"]
[TimeControl "300"]
[EndTime "7:21:26 PDT"]
[Termination "NottheBishopSacrifice won by resignation"]

1. d4 {[%clk 0:04:58]} 1... Nf6 {[%clk 0:04:57.8]} 2. c4 {[%clk 0:04:56.9]} 2...
g6 {[%clk 0:04:56.7]} 3. g3 {[%clk 0:04:55.5]} 3... Bg7 {[%clk 0:04:55.8]} 4.
Bg2 {[%clk 0:04:55.2]} 4... O-O {[%clk 0:04:53.1]} 5. Nc3 {[%clk 0:04:54.7]}
5... d6 {[%clk 0:04:51.2]} 6. e3 {[%clk 0:04:53.5]} 6... c6 {[%clk 0:04:50.1]}
7. Nge2 {[%clk 0:04:53]} 7... Bf5 {[%clk 0:04:46.8]} 8. O-O {[%clk 0:04:52.2]}
8... e5 {[%clk 0:04:19.5]} 9. b3 {[%clk 0:04:49.8]} 9... Na6 {[%clk 0:04:06.3]}
10. Bb2 {[%clk 0:04:46.7]} 10... Nb4 {[%clk 0:03:59.3]} 11. a3 {[%clk
0:04:41.9]} 11... Nd3 {[%clk 0:03:58.1]} 12. Qd2 {[%clk 0:04:39.7]} 12... Nxb2
{[%clk 0:03:56.4]} 13. Qxb2 {[%clk 0:04:38.1]} 13... Rc8 {[%clk 0:03:40.5]} 14.
Rfd1 {[%clk 0:04:35.2]} 14... d5 {[%clk 0:03:39.1]} 15. dxe5 {[%clk 0:04:33.2]}
15... Ne4 {[%clk 0:03:30.5]} 16. Nxe4 {[%clk 0:04:30.3]} 16... Qe7 {[%clk
0:03:14.3]} 17. Nd6 {[%clk 0:04:27.2]} 17... Bxe5 {[%clk 0:03:13.4]} 18. Nxf5
{[%clk 0:04:26.1]} 18... Qf6 {[%clk 0:03:06.5]} 19. Nh6+ {[%clk 0:04:21.7]}
19... Kg7 {[%clk 0:03:04.7]} 20. Ng4 {[%clk 0:04:16.9]} 20... Bxb2 {[%clk
0:03:02.2]} 21. Nxf6 {[%clk 0:04:15.8]} 21... Bxf6 {[%clk 0:03:01.6]} 22. Rab1
{[%clk 0:04:14]} 1-0